[Event "44th Chess Olympiad Open 2022"]
[Site "Chennai"]
[Date "2022.08.07"]
[Round "9.42"]
[White "Bwalya, Gillan"]
[Black "Nassr, Ali"]
[Result "1/2-1/2"]
[WhiteElo "2396"]
[BlackElo "2263"]
[Annotator "TA"]
[PlyCount "102"]
[EventDate "2022.??.??"]
[TimeControl "60"]

{[%evp 21,102,20,0,0,29,-5,0,-4,0,-19,-23,-28,-9,-39,-33,-22,-14,-15,-23,-79,
-61,-98,-62,-62,-37,-36,-48,-54,-64,-62,-60,-71,-67,-74,-68,-93,-98,-115,-99,
-109,0,-108,-102,-148,-141,-166,-172,-169,-169,-177,-179,-186,-187,-206,-195,
-209,-135,-135,-135,-136,-139,-155,-143,-128,-129,-227,-239,-199,-83,-155,-137,
-188,-189,-191,-189,-164,-144,-142,-80,-55,0,0,0]} 1. d4 {[%emt 0:00:56]} d5 {
[%emt 0:00:09]} 2. c4 {[%emt 0:00:10]} dxc4 {[%emt 0:00:24]} 3. e3 {[%emt 0:00:
00]} Nf6 {[%emt 0:00:43]} 4. Bxc4 {[%emt 0:00:11]} e6 {[%emt 0:00:34]} 5. Nc3 {
[%emt 0:00:51]} a6 {[%emt 0:00:25]} 6. a4 {[%emt 0:00:21]} Be7 {[%emt 0:03:06]}
7. Nf3 {[%emt 0:06:33]} O-O {[%emt 0:02:47]} 8. O-O {[%emt 0:00:13]} c5 {
[%emt 0:01:14]} 9. Qe2 {[%emt 0:00:53]} Nc6 {[%emt 0:02:35][%cal Yb8c6,Yc6b4,
Yb4d5]} 10. Rd1 {[%emt 0:06:43]} cxd4 {[%emt 0:06:06]} 11. exd4 {[%emt 0:01:18]
} Nb4 {[%emt 0:02:29]} 12. Bf4 {[%emt 0:03:12] D27: Queen's Gambit Accepted:
Classical main line: 7 e4!? and 7 a4.} Nbd5 {[%emt 0:03:55]} 13. Bg3 {[%emt 0:
01:04]} b6 {[%emt 0:02:56]} 14. Ne5 {[%emt 0:00:28] Black must now prevent
Nxd5.} Bb7 {[%emt 0:01:03] [#]} 15. Bd3 $146 {[%emt 0:00:31]} ({Predecessor:} 
15. Rac1 Re8 16. h3 g6 17. Nxd5 Nxd5 18. Qf3 Rf8 19. Bf4 Kg7 20. Ng4 {0-1 (56)
Jamieson,P (2277)-Shvedchikov,A (2412) Thessaloniki 2011}) 15... Nb4 {[%emt 0:
08:07]} 16. Bb1 {[%emt 0:01:12]} Rc8 {[%emt 0:00:48]} 17. Ng4 {[%emt 0:05:28]}
Nxg4 {[%emt 0:12:14]} 18. Qxg4 {[%emt 0:00:09]} g6 {[%emt 0:05:34]} 19. Be5 {
[%emt 0:01:48]} Nd5 {[%emt 0:02:51]} 20. Ne2 {[%emt 0:00:00]} (20. Ba2 $11)
20... Bd6 {[%emt 0:03:48]} (20... Rc4 $5 {[%cal Rc4b4]}) 21. Ng3 {[%emt 0:05:
21]} f5 {[%emt 0:01:11]} 22. Qe2 {[%emt 0:01:04]} Bxe5 {[%emt 0:00:37]} (22...
Nb4 {seems wilder.} 23. Ba2 Nxa2 24. Rxa2 Bxe5 25. dxe5 Qc7) 23. Qxe5 {[%emt 0:
00:08]} Qf6 {[%emt 0:00:38]} 24. Qxf6 {[%emt 0:04:43]} Rxf6 {[%emt 0:01:27]}
25. Ne2 {[%emt 0:02:44]} Rf7 {[%emt 0:00:59]} 26. Ra3 {[%emt 0:02:50]} Rfc7 {
[%emt 0:02:02]} 27. h4 {[%emt 0:04:17]} Kf7 {[%emt 0:00:00]} 28. Kh2 {[%emt 0:
02:02]} a5 {[%emt 0:01:19]} 29. Bd3 {[%emt 0:01:12]} Nb4 {[%emt 0:01:38]} 30.
Nf4 {[%emt 0:02:53]} Nd5 {[%emt 0:10:39]} (30... Kf6 {with more complications.}
31. Re1 Re7 32. Bb1 Nd5) 31. Ne2 {[%emt 0:02:09]} h6 {[%emt 0:01:21]} 32. Bb1 {
[%emt 0:01:26]} (32. Kg1 $142) 32... Ba6 $17 {[%emt 0:01:53]} 33. Bd3 {[%emt 0:
01:05]} Bxd3 {[%emt 0:04:10]} 34. Raxd3 {[%emt 0:00:10]} Rc4 {[%emt 0:02:24]}
35. b3 {[%emt 0:00:28]} Rc2 {[%emt 0:00:00]} 36. R3d2 {[%emt 0:00:14]} g5 {
[%emt 0:01:43]} 37. hxg5 {[%emt 0:00:32]} hxg5 {[%emt 0:00:04]} 38. Kg1 {
[%emt 0:00:50]} Rxd2 {[%emt 0:04:36]} 39. Rxd2 $19 {[%emt 0:00:07] Endgame
KRN-KRN} Ke7 {[%emt 0:00:14]} 40. Kf1 {[%emt 0:07:04]} Kd6 {[%emt 0:00:23]} 41.
g3 {[%emt 0:38:04]} Rc7 {[%emt 0:00:00]} 42. Kg2 {[%emt 0:00:30]} Nc3 {[%emt 0:
02:00]} 43. Ng1 {[%emt 0:00:39]} (43. Kf1 $17) 43... Ne4 {[%emt 0:00:12]} 44.
Rb2 {[%emt 0:00:42]} Kd5 {[%emt 0:00:00]} (44... g4 $19 {is more deadly. ...
Ng5 is the strong threat.} 45. Ne2 Ng5) 45. Ne2 {[%emt 0:00:00]} (45. f3 $142
Nf6 46. Ne2) 45... Rc6 $1 $17 {[%emt 0:00:00]} 46. b4 {[%emt 0:00:00] [#]} (46.
g4 $17) 46... axb4 $1 $19 {[%emt 0:00:00]} 47. Rxb4 {[%emt 0:00:00]} Rc2 {
[%emt 0:00:00]} 48. Kf1 {[%emt 0:00:00]} Nd2+ {[%emt 0:00:00]} 49. Ke1 {
[%emt 0:00:00] [#]} Nc4 {[%emt 0:00:00]} ({Black should play} 49... Nf3+ $1 50.
Kf1 Kc6) 50. Rb5+ $17 {[%emt 0:00:00]} Kd6 {[%emt 0:00:00]} (50... Ke4 $15 51.
Rb3 Rb2 52. f3+ Kd5) 51. Rb4 $11 {[%emt 0:00:00]} Kd5 {[%emt 0:00:00] Weighted
Error Value: White=0.16 (very precise) /Black=0.14 (very precise)} 1/2-1/2

[Event "44th Chess Olympiad Open 2022"]
[Site "Chennai"]
[Date "2022.08.07"]
[Round "9.42"]
[White "Lungu, Nase"]
[Black "Djabri, Massinas"]
[Result "0-1"]
[WhiteElo "2216"]
[BlackElo "2206"]
[Annotator "RC"]
[PlyCount "70"]
[EventDate "2022.??.??"]
[TimeControl "60"]

1. c4 {[%emt 0:00:03]} e5 {[%emt 0:00:19]} 2. g3 {[%emt 0:02:15]} Nf6 {[%emt 0:
00:00]} 3. Bg2 {[%emt 0:00:09]} g6 {[%emt 0:00:06]} 4. Nf3 {[%emt 0:01:45]} Nc6
{[%emt 0:00:22]} 5. Nc3 {[%emt 0:00:30]} Bg7 {[%emt 0:00:21]} 6. d4 {[%emt 0:
00:00]} exd4 {[%emt 0:05:54]} 7. Nxd4 {[%emt 0:00:05]} O-O {[%emt 0:00:28]} 8.
O-O {[%emt 0:00:06]} Re8 {[%emt 0:01:02]} 9. Nc2 {[%emt 0:04:00]} d6 {[%emt 0:
00:00]} 10. b3 {[%emt 0:01:46]} Bf5 {[%emt 0:02:42]} 11. f3 {[%emt 0:14:22]} d5
{[%emt 0:18:32]} 12. Na3 {[%emt 0:25:16]} d4 {[%emt 0:09:06]} 13. Na4 {[%emt 0:
00:00]} d3 {[%emt 0:01:33]} 14. e3 {[%emt 0:00:54]} Nb4 {[%emt 0:14:35]} 15.
Qd2 {[%emt 0:11:44]} Nc2 {[%emt 0:08:50]} 16. Nxc2 {[%emt 0:08:21]} dxc2 {
[%emt 0:00:05]} 17. e4 {[%emt 0:00:16]} Nxe4 {[%emt 0:00:49]} 18. fxe4 {
[%emt 0:00:29]} Bxa1 {[%emt 0:00:14]} 19. exf5 {[%emt 0:00:56]} Qxd2 {[%emt 0:
00:00]} 20. Bxd2 {[%emt 0:00:42]} Bd4+ {[%emt 0:02:54]} 21. Kh1 {[%emt 0:00:11]
} Re2 {[%emt 0:00:23]} 22. Bc1 {[%emt 0:06:40]} Rae8 {[%emt 0:02:37]} 23. fxg6
{[%emt 0:00:41]} hxg6 {[%emt 0:00:25]} 24. Bf3 {[%emt 0:00:49]} Rf2 {[%emt 0:
00:00]} 25. Rxf2 {[%emt 0:00:20]} Re1+ {[%emt 0:00:32]} 26. Kg2 {[%emt 0:00:25]
} Rxc1 {[%emt 0:01:00]} 27. Be4 {[%emt 0:06:44]} Rg1+ {[%emt 0:00:32]} 28. Kxg1
{[%emt 0:02:24]} c1=Q+ {[%emt 0:00:07]} 29. Kg2 {[%emt 0:00:09]} Bxf2 {[%emt 0:
00:00]} 30. Kxf2 {[%emt 0:00:13]} Qd2+ {[%emt 0:00:14]} 31. Kf3 {[%emt 0:00:10]
} b6 {[%emt 0:00:05]} 32. Bd5 {[%emt 0:00:21]} Qxa2 {[%emt 0:00:15]} 33. c5 {
[%emt 0:00:12]} Qd2 {[%emt 0:00:13]} 34. Bc4 {[%emt 0:00:13]} Qd4 {[%emt 0:00:
00]} 35. h4 {[%emt 0:00:14]} c6 {[%emt 0:00:21]} 0-1

[Event "44th Chess Olympiad Open 2022"]
[Site "Chennai"]
[Date "2022.08.07"]
[Round "9.42"]
[White "Brahami, Lamine"]
[Black "Phiri, Richmond"]
[Result "0-1"]
[WhiteElo "2189"]
[BlackElo "2293"]
[Annotator "NA RC"]
[PlyCount "48"]
[EventDate "2022.??.??"]
[TimeControl "60"]

1. d4 {[%emt 0:00:05]} Nf6 {[%emt 0:00:16]} 2. c4 {[%emt 0:00:29]} e6 {[%emt 0:
00:00]} 3. Nf3 {[%emt 0:00:32]} b6 {[%emt 0:00:14]} 4. g3 {[%emt 0:01:03]} Bb7
{[%emt 0:01:12]} 5. Bg2 {[%emt 0:00:14]} Bb4+ {[%emt 0:01:22]} 6. Bd2 {[%emt 0:
00:00]} Be7 {[%emt 0:00:05]} 7. O-O {[%emt 0:00:58]} O-O {[%emt 0:00:02]} 8.
Nc3 {[%emt 0:01:52]} d5 {[%emt 0:05:19]} 9. Ne5 {[%emt 0:12:59]} c6 {[%emt 0:
00:00]} 10. Bf4 {[%emt 0:05:18]} Nbd7 {[%emt 0:01:32]} 11. Qc2 {[%emt 0:16:59]}
Nxe5 {[%emt 0:07:19]} 12. dxe5 {[%emt 0:03:42]} Nd7 {[%emt 0:00:04]} 13. Rad1 {
[%emt 0:03:15]} g5 {[%emt 0:02:29]} 14. Bc1 {[%emt 0:01:50]} Nxe5 {[%emt 0:00:
00]} 15. cxd5 {[%emt 0:21:12]} cxd5 {[%emt 0:00:06]} 16. e4 {[%emt 0:00:08]} d4
{[%emt 0:11:42]} 17. f4 {[%emt 0:03:40]} d3 {[%emt 0:00:11]} 18. Qb1 {[%emt 0:
00:00]} gxf4 {[%emt 0:02:47]} 19. gxf4 {[%emt 0:00:24]} Bc5+ {[%emt 0:05:15]}
20. Kh1 {[%emt 0:05:40]} Ng4 {[%emt 0:02:11]} 21. Bf3 {[%emt 0:15:39]} Nxh2 {
[%emt 0:06:30]} 22. Kg2 {[%emt 0:03:37]} Nxf1 {[%emt 0:00:28]} 23. Kxf1 {
[%emt 0:00:33]} Qh4 {[%emt 0:00:11]} 24. Rd2 {[%emt 0:00:20]} Kh8 {[%emt 0:00:
00]} 0-1

[Event "44th Chess Olympiad Open 2022"]
[Site "Chennai"]
[Date "2022.08.07"]
[Round "9.42"]
[White "Araoun, Saadi"]
[Black "Kabwe Timothy"]
[Result "1-0"]
[WhiteElo "2049"]
[BlackElo "2248"]
[Annotator "RC"]
[PlyCount "111"]
[EventDate "2022.??.??"]
[TimeControl "60"]

1. d4 {[%emt 0:00:04]} d5 {[%emt 0:00:30]} 2. c4 {[%emt 0:00:09]} c6 {[%emt 0:
00:00]} 3. Nc3 {[%emt 0:00:12]} Nf6 {[%emt 0:00:09]} 4. e3 {[%emt 0:00:21]} g6
{[%emt 0:01:14]} 5. Nf3 {[%emt 0:01:48]} Bg7 {[%emt 0:00:29]} 6. Be2 {[%emt 0:
00:00]} O-O {[%emt 0:01:02]} 7. O-O {[%emt 0:00:12]} Bf5 {[%emt 0:01:04]} 8.
cxd5 {[%emt 0:01:46]} Nxd5 {[%emt 0:01:26]} 9. Qb3 {[%emt 0:05:45]} b6 {
[%emt 0:02:20]} 10. Nxd5 {[%emt 0:03:54]} cxd5 {[%emt 0:00:11]} 11. Bd2 {
[%emt 0:00:32]} Be6 {[%emt 0:09:39]} 12. Rfc1 {[%emt 0:17:23]} Bc8 {[%emt 0:00:
00]} 13. Rc3 {[%emt 0:00:44]} Ba6 {[%emt 0:02:49]} 14. Bb5 {[%emt 0:09:00]}
Bxb5 {[%emt 0:02:22]} 15. Qxb5 {[%emt 0:00:04]} e6 {[%emt 0:08:30]} 16. Rac1 {
[%emt 0:03:04]} Qd7 {[%emt 0:00:14]} 17. Qd3 {[%emt 0:10:04]} Qa4 {[%emt 0:00:
00]} 18. Ra3 {[%emt 0:04:32]} Qd7 {[%emt 0:00:18]} 19. Qc2 {[%emt 0:01:51]} Re8
{[%emt 0:01:13]} 20. Qc7 {[%emt 0:07:55]} Bf8 {[%emt 0:01:09]} 21. Rac3 {
[%emt 0:06:05]} Qxc7 {[%emt 0:04:45]} 22. Rxc7 {[%emt 0:00:06]} Na6 {[%emt 0:
00:00]} 23. R7c6 {[%emt 0:03:16]} Nb4 {[%emt 0:02:18]} 24. Bxb4 {[%emt 0:01:10]
} Bxb4 {[%emt 0:00:10]} 25. Kf1 {[%emt 0:03:23]} Red8 {[%emt 0:00:31]} 26. Ke2
{[%emt 0:02:45]} Bd6 {[%emt 0:00:22]} 27. Nd2 {[%emt 0:04:50]} Kf8 {[%emt 0:00:
00]} 28. g3 {[%emt 0:02:17]} Ke7 {[%emt 0:01:33]} 29. e4 {[%emt 0:02:59]} Bb4 {
[%emt 0:01:30]} 30. e5 {[%emt 0:01:13]} Bxd2 {[%emt 0:01:15]} 31. Kxd2 {
[%emt 0:00:10]} Rd7 {[%emt 0:00:28]} 32. Kc3 {[%emt 0:06:07]} h5 {[%emt 0:00:
00]} 33. Kb4 {[%emt 0:00:19]} f6 {[%emt 0:01:28]} 34. exf6+ {[%emt 0:01:08]}
Kxf6 {[%emt 0:00:12]} 35. Re1 {[%emt 0:01:00]} Re7 {[%emt 0:01:21]} 36. Re5 {
[%emt 0:00:32]} g5 {[%emt 0:02:09]} 37. Rxd5 {[%emt 0:00:21]} Rc8 {[%emt 0:00:
00]} 38. Rxc8 {[%emt 0:00:35]} exd5 {[%emt 0:00:13]} 39. Rf8+ {[%emt 0:00:25]}
Kg6 {[%emt 0:00:22]} 40. Kc3 {[%emt 0:00:58]} Re2 {[%emt 0:01:18]} 41. h3 {
[%emt 0:30:35]} b5 {[%emt 0:33:59]} 42. a3 {[%emt 0:00:00]} a5 {[%emt 0:00:00]}
43. Rf3 {[%emt 0:00:00]} Re1 {[%emt 0:00:00]} 44. Kd2 {[%emt 0:00:00]} Rh1 {
[%emt 0:00:00]} 45. Rb3 {[%emt 0:00:00]} b4 {[%emt 0:00:00]} 46. axb4 {[%emt 0:
00:00]} axb4 {[%emt 0:00:00]} 47. g4 {[%emt 0:00:00]} h4 {[%emt 0:00:00]} 48.
Rf3 {[%emt 0:00:00]} Rh2 {[%emt 0:00:00]} 49. Kc2 {[%emt 0:00:00]} Rh1 {
[%emt 0:00:00]} 50. Kb3 {[%emt 0:00:00]} Rd1 {[%emt 0:00:00]} 51. Kxb4 {
[%emt 0:00:00]} Rxd4+ {[%emt 0:00:00]} 52. Kc5 {[%emt 0:00:00]} Rd1 {[%emt 0:
00:00]} 53. b4 {[%emt 0:00:00]} d4 {[%emt 0:00:00]} 54. Kc4 {[%emt 0:00:00]}
Rb1 {[%emt 0:00:00]} 55. b5 {[%emt 0:00:00]} Rb2 {[%emt 0:00:00]} 56. Rb3 {
[%emt 0:00:29]} 1-0

[Event "44th Chess Olympiad Open 2022"]
[Site "Chennai"]
[Date "2022.08.07"]
[Round "9.43"]
[White "Msellek, Ilyass"]
[Black "Kulpruethanon, Thanadon"]
[Result "1/2-1/2"]
[WhiteElo "2398"]
[BlackElo "2294"]
[Annotator "TA"]
[PlyCount "74"]
[EventDate "2022.??.??"]
[TimeControl "60"]

{[%evp 28,74,22,8,32,0,10,12,16,-29,-31,-33,-28,-39,-32,-30,-31,-36,0,-26,80,
81,97,85,107,112,97,97,91,-56,0,0,78,85,131,122,129,116,453,453,399,0,0,0,333,
0,0,0,333]} 1. e4 {[%emt 0:00:07]} e5 {[%emt 0:00:09]} 2. Nf3 {[%emt 0:00:06]}
Nc6 {[%emt 0:00:07]} 3. Bb5 {[%emt 0:00:24]} a6 {[%emt 0:00:06]} 4. Ba4 {
[%emt 0:00:03]} Nf6 {[%emt 0:00:12]} 5. O-O {[%emt 0:00:33]} Be7 {[%emt 0:00:
00]} 6. Re1 {[%emt 0:00:19]} b5 {[%emt 0:00:10]} 7. Bb3 {[%emt 0:00:05]} d6 {
[%emt 0:00:11]} 8. c3 {[%emt 0:00:10]} O-O {[%emt 0:00:10]} 9. h3 {[%emt 0:00:
00]} Bb7 {[%emt 0:01:33]} 10. d4 {[%emt 0:00:24]} Re8 {[%emt 0:00:26]} 11. Nbd2
{[%emt 0:01:38]} Bf8 {[%emt 0:00:27]} 12. a3 {[%emt 0:00:23]} h6 {[%emt 0:00:
00]} 13. Bc2 {[%emt 0:01:54]} Nb8 {[%emt 0:00:32]} 14. b4 {[%emt 0:00:38]} Nbd7
{[%emt 0:00:14]} 15. Bb2 {[%emt 0:00:14]} Rc8 {[%emt 0:00:30] [#] C93: Closed
Ruy Lopez: Smyslov Variation.} 16. c4 $146 {[%emt 0:07:01]} ({Predecessor:} 16.
a4 c6 17. c4 Qc7 18. Rc1 bxa4 19. Bxa4 a5 20. bxa5 exd4 21. Nxd4 Qxa5 22. Bc2
Qc7 23. Qf3 {½-½ (36) Mendl,M (2536)-Pessoa,F (2517) ICCF email 2020}) 16...
c5 {[%emt 0:14:02]} (16... exd4 $5 {[%cal Rc7c5]} 17. cxb5 axb5 $14) 17. bxc5 {
[%emt 0:09:39]} exd4 {[%emt 0:02:16]} 18. cxd6 {[%emt 0:02:00]} bxc4 {[%emt 0:
00:00]} 19. Bxd4 {[%emt 0:08:59] Hoping for e5.} c3 {[%emt 0:01:05]} 20. Nb1 {
[%emt 0:09:06]} Nxe4 {[%emt 0:08:51]} 21. Bxe4 {[%emt 0:00:42]} Rxe4 {[%emt 0:
00:00]} 22. Nxc3 {[%emt 0:08:07]} Rf4 {[%emt 0:16:10] Strongly threatening ...
Bxf3.} 23. Re3 {[%emt 0:06:19]} Rc4 {[%emt 0:00:00]} (23... Bxd6 $11 {keeps
the balance.} 24. Rd3 (24. Bxg7 $2 Bc5 $19) 24... Qe7) 24. Qd3 $1 $16 {[%emt 0:
00:00]} Qc8 {[%emt 0:39:37] White must now prevent ...Bxf3.} 25. Ne2 {[%emt 0:
00:00] 0x0.00198aca9010dp-1022s more active pieces.} Rxf3 {[%emt 0:00:31]} 26.
gxf3 {[%emt 0:01:57]} Rc6 {[%emt 0:03:47]} 27. Ng3 {[%emt 0:14:45] And now Nf5
would win.} Rxd6 {[%emt 0:00:14]} 28. Nf5 {[%emt 0:00:38]} ({White should play
} 28. Qc3 $16) 28... Rg6+ {[%emt 0:00:38]} (28... Rd5 $1 $15 29. Ng3 Nc5) 29.
Kh1 {[%emt 0:00:11]} Nc5 {[%emt 0:03:25]} (29... Rg5 $11 30. Kh2 Nb6) 30. Bxc5
{[%emt 0:04:30]} Qxc5 {[%emt 0:01:47] [#]} (30... Bxc5 $142 31. Rc1 Qf8) 31.
Rg1 $1 {[%emt 0:00:21][%cal Ya1g1,Yg1g7,Yg7h7]} Qc8 {[%emt 0:01:45] Against Re8
} 32. Kh2 {[%emt 0:12:55] aiming for Rxg6.} Rf6 {[%emt 0:00:21] [#]} (32...
Qc7+ $16 {is tougher.} 33. Rg3 Bc6) 33. Rxg7+ $3 $18 {[%emt 0:01:08]} Kh8 {
[%emt 0:00:20]} 34. Rh7+ {[%emt 0:01:37]} Kg8 {[%emt 0:00:11]} 35. Rg7+ $1 {
[%emt 0:01:40]} Kh8 {[%emt 0:00:03]} 36. Rh7+ {[%emt 0:01:02]} Kg8 {[%emt 0:00:
01]} 37. Rg7+ $1 {[%emt 0:01:30]} Kh8 {[%emt 0:00:00] Weighted Error Value:
White=0.51/Black=0.60. An unexpected result.} 1/2-1/2

[Event "44th Chess Olympiad Open 2022"]
[Site "Chennai"]
[Date "2022.08.07"]
[Round "9.43"]
[White "Laohawirapap, Prin"]
[Black "Choukri, Adel"]
[Result "0-1"]
[WhiteElo "2230"]
[BlackElo "2306"]
[Annotator "RC"]
[PlyCount "58"]
[EventDate "2022.??.??"]
[TimeControl "60"]

1. e4 {[%emt 0:00:03]} c5 {[%emt 0:00:13]} 2. Nf3 {[%emt 0:00:07]} Nc6 {
[%emt 0:00:09]} 3. d4 {[%emt 0:00:03]} cxd4 {[%emt 0:00:08]} 4. Nxd4 {[%emt 0:
00:00]} Nf6 {[%emt 0:00:06]} 5. Nc3 {[%emt 0:00:05]} e5 {[%emt 0:00:17]} 6.
Ndb5 {[%emt 0:00:05]} d6 {[%emt 0:00:05]} 7. Nd5 {[%emt 0:00:09]} Nxd5 {
[%emt 0:00:13]} 8. exd5 {[%emt 0:00:06]} Nb8 {[%emt 0:00:06]} 9. a4 {[%emt 0:
00:00]} Be7 {[%emt 0:00:07]} 10. Be2 {[%emt 0:00:09]} O-O {[%emt 0:00:14]} 11.
Bd2 {[%emt 0:00:05]} f5 {[%emt 0:01:25]} 12. a5 {[%emt 0:02:12]} a6 {[%emt 0:
00:00]} 13. Na3 {[%emt 0:04:34]} Nd7 {[%emt 0:00:25]} 14. O-O {[%emt 0:00:57]}
e4 {[%emt 0:00:16]} 15. Nc4 {[%emt 0:00:31]} Ne5 {[%emt 0:00:16]} 16. Nb6 {
[%emt 0:00:35]} Rb8 {[%emt 0:00:06]} 17. f4 {[%emt 0:00:10]} exf3 {[%emt 0:00:
00]} 18. Bxf3 {[%emt 0:00:12]} Bf6 {[%emt 0:00:19]} 19. Be2 {[%emt 0:10:31]} g5
{[%emt 0:14:45]} 20. c4 {[%emt 0:16:12]} f4 {[%emt 0:03:13]} 21. Bb4 {[%emt 0:
00:00]} f3 {[%emt 0:18:13]} 22. gxf3 {[%emt 0:00:06]} Bh3 {[%emt 0:01:57]} 23.
Rf2 {[%emt 0:00:06]} Qe7 {[%emt 0:14:58]} 24. Ra3 {[%emt 0:09:48]} Ng6 {
[%emt 0:10:44]} 25. c5 {[%emt 0:08:57]} Bxb2 {[%emt 0:05:03]} 26. cxd6 {
[%emt 0:07:19]} Qg7 {[%emt 0:00:29]} 27. Rd3 {[%emt 0:00:08]} Nf4 {[%emt 0:00:
00]} 28. Rd2 {[%emt 0:01:30]} g4 {[%emt 0:04:39]} 29. Bf1 {[%emt 0:03:57]} Bd4
{[%emt 0:06:16]} 0-1

[Event "44th Chess Olympiad Open 2022"]
[Site "Chennai"]
[Date "2022.08.07"]
[Round "9.43"]
[White "Saeheng, Boonsueb"]
[Black "Zrikem, Nassim"]
[Result "1-0"]
[WhiteElo "2063"]
[BlackElo "2075"]
[Annotator "NA RC"]
[PlyCount "59"]
[EventDate "2022.??.??"]
[TimeControl "60"]

1. d4 {[%emt 0:00:04]} d5 {[%emt 0:00:16]} 2. c4 {[%emt 0:00:08]} dxc4 {
[%emt 0:00:41]} 3. e3 {[%emt 0:01:39]} c5 {[%emt 0:00:28]} 4. Bxc4 {[%emt 0:00:
00]} cxd4 {[%emt 0:00:57]} 5. exd4 {[%emt 0:00:32]} Nf6 {[%emt 0:00:50]} 6. Nf3
{[%emt 0:00:19]} e6 {[%emt 0:01:15]} 7. O-O {[%emt 0:00:40]} Be7 {[%emt 0:00:
00]} 8. Nc3 {[%emt 0:02:41]} O-O {[%emt 0:02:51]} 9. Qe2 {[%emt 0:04:36]} Nbd7
{[%emt 0:06:09]} 10. Rd1 {[%emt 0:03:21]} Nb6 {[%emt 0:06:56]} 11. Bb3 {
[%emt 0:03:12]} Nbd5 {[%emt 0:01:21]} 12. Ne5 {[%emt 0:03:56]} b6 {[%emt 0:00:
00]} 13. Nxd5 {[%emt 0:04:24]} Nxd5 {[%emt 0:01:31]} 14. Nc6 {[%emt 0:00:19]}
Qe8 {[%emt 0:09:32]} 15. Bxd5 {[%emt 0:00:46]} exd5 {[%emt 0:00:35]} 16. Nxe7+
{[%emt 0:03:28]} Kh8 {[%emt 0:00:04]} 17. Qe5 {[%emt 0:04:59]} f6 {[%emt 0:00:
00]} 18. Qd6 {[%emt 0:05:21]} Bg4 {[%emt 0:04:05]} 19. Re1 {[%emt 0:00:48]} Rd8
{[%emt 0:00:05]} 20. Qg3 {[%emt 0:01:44]} Qd7 {[%emt 0:01:08]} 21. Bd2 {
[%emt 0:03:32]} Be6 {[%emt 0:01:15]} 22. Bb4 {[%emt 0:00:27]} Rfe8 {[%emt 0:00:
00]} 23. Qe3 {[%emt 0:01:59]} Bf7 {[%emt 0:00:23]} 24. Ba3 {[%emt 0:02:22]} a5
{[%emt 0:00:53]} 25. Rac1 {[%emt 0:01:45]} b5 {[%emt 0:00:20]} 26. Bc5 {
[%emt 0:00:08]} Ra8 {[%emt 0:00:13]} 27. Qh3 {[%emt 0:00:50]} f5 {[%emt 0:00:
00]} 28. Re5 {[%emt 0:01:00]} g6 {[%emt 0:01:14]} 29. Qh6 {[%emt 0:00:38]} Ra6
{[%emt 0:01:01]} 30. Rce1 {[%emt 0:00:57]} 1-0

[Event "44th Chess Olympiad Open 2022"]
[Site "Chennai"]
[Date "2022.08.07"]
[Round "9.43"]
[White "Hadj Kholti, Yasser"]
[Black "Arunnuntapanich, Tinnakrit"]
[Result "0-1"]
[WhiteElo "1871"]
[BlackElo "2117"]
[Annotator "NA"]
[PlyCount "74"]
[EventDate "2022.??.??"]
[TimeControl "60"]

1. e4 {[%emt 0:00:02]} c5 {[%emt 0:00:04]} 2. Nf3 {[%emt 0:00:05]} d6 {[%emt 0:
00:00]} 3. d4 {[%emt 0:00:05]} cxd4 {[%emt 0:00:03]} 4. Nxd4 {[%emt 0:00:07]}
Nf6 {[%emt 0:00:13]} 5. Nc3 {[%emt 0:00:04]} a6 {[%emt 0:00:04]} 6. Be3 {
[%emt 0:00:10]} e5 {[%emt 0:00:04]} 7. Nf3 {[%emt 0:00:06]} Be7 {[%emt 0:00:06]
} 8. Bc4 {[%emt 0:00:12]} O-O {[%emt 0:00:07]} 9. O-O {[%emt 0:00:20]} Be6 {
[%emt 0:00:06]} 10. Bb3 {[%emt 0:00:16]} b5 {[%emt 0:00:36]} 11. Nd5 {[%emt 0:
00:00]} Nxd5 {[%emt 0:00:58]} 12. Bxd5 {[%emt 0:00:13]} Bxd5 {[%emt 0:00:10]}
13. Qxd5 {[%emt 0:00:06]} Nd7 {[%emt 0:00:12]} 14. Qd3 {[%emt 0:05:22]} Qc7 {
[%emt 0:02:16]} 15. a4 {[%emt 0:08:19]} Nc5 {[%emt 0:19:10]} 16. Bxc5 {[%emt 0:
00:00]} Qxc5 {[%emt 0:02:33]} 17. Rfd1 {[%emt 0:15:30]} b4 {[%emt 0:08:13]} 18.
a5 {[%emt 0:04:38]} Rfc8 {[%emt 0:00:33]} 19. Ne1 {[%emt 0:01:15]} Qc4 {
[%emt 0:17:43]} 20. Ra4 {[%emt 0:08:15]} Rab8 {[%emt 0:03:55]} 21. b3 {[%emt 0:
00:00]} Qc6 {[%emt 0:07:33]} 22. Qd5 {[%emt 0:02:53]} Qc3 {[%emt 0:11:10]} 23.
Kf1 {[%emt 0:02:20]} g6 {[%emt 0:02:47]} 24. Qd2 {[%emt 0:06:53]} Rb5 {[%emt 0:
00:00]} 25. Nd3 {[%emt 0:05:11]} d5 {[%emt 0:02:51]} 26. Qe3 {[%emt 0:13:53]}
dxe4 {[%emt 0:07:57]} 27. Qxe4 {[%emt 0:00:16]} f5 {[%emt 0:00:22]} 28. Qe3 {
[%emt 0:01:40]} e4 {[%emt 0:00:28]} 29. Ne1 {[%emt 0:01:19]} Qxe3 {[%emt 0:00:
00]} 30. fxe3 {[%emt 0:00:18]} Bg5 {[%emt 0:03:09]} 31. Rd6 {[%emt 0:04:49]}
Bxe3 {[%emt 0:01:03]} 32. Rxa6 {[%emt 0:00:08]} Rd5 {[%emt 0:01:38]} 33. Rxb4 {
[%emt 0:03:42]} Rd2 {[%emt 0:00:13]} 34. h4 {[%emt 0:00:57]} Rf2+ {[%emt 0:00:
00]} 35. Kg1 {[%emt 0:00:04]} Rf4+ {[%emt 0:00:35]} 36. Kh2 {[%emt 0:00:19]}
Rxh4+ {[%emt 0:00:11]} 37. Kg3 {[%emt 0:00:09]} g5 {[%emt 0:00:09]} 0-1